fUSD/lending_fUSD_20241215
["ID","MTS","AMOUNT","RATE_DAILY","PERIOD"]
[345439683,1734258644267,-500.0,0.00019893,3]
[345439684,1734258644276,-500.0,0.00019893,3]
[345439685,1734258644286,-500.0,0.00019893,3]
[345439686,1734258644296,-500.0,0.00019893,3]
[345439687,1734258644306,-291.22344291,0.00019893,3]
[345439688,1734258644319,-500.0,0.00019893,3]
[345439689,1734258644328,-567.92625145,0.00019893,3]
[345439690,1734258644338,-500.0,0.00019893,3]
[345439691,1734258644348,-500.0,0.00019893,3]
[345439692,1734258644357,-500.0,0.00019893,3]
[345439693,1734258644368,-500.0,0.00019893,3]
[345439694,1734258644377,-500.0,0.00019893,3]
[345439695,1734258644386,-500.0,0.00019893,3]
[345439696,1734258644396,-500.0,0.00019893,3]
[345439697,1734258644406,-500.0,0.00019893,3]
[345439698,1734258644416,-500.0,0.00019893,3]
[345439699,1734258644425,-500.0,0.00019893,3]
[345439700,1734258644435,-500.0,0.00019893,3]
[345439701,1734258644444,-500.0,0.00019893,3]
[345439702,1734258644454,-500.0,0.00019893,3]
[345439703,1734258644463,-500.0,0.00019893,3]
[345439704,1734258644510,-500.0,0.00019893,3]
[345439705,1734258644519,-500.0,0.00019893,3]
[345439706,1734258644529,-500.0,0.00019893,3]
[345439707,1734258644538,-500.0,0.00019893,3]
[345439708,1734258644548,-500.0,0.00019893,3]
[345439709,1734258644559,-500.0,0.00019893,3]
[345439710,1734258644568,-500.0,0.00019893,3]
[345439711,1734258644577,-500.0,0.00019893,3]
[345439712,1734258644586,-500.0,0.00019893,3]
[345439713,1734258644596,-500.0,0.00019893,3]
[345439714,1734258644605,-500.0,0.00019893,3]
[345439715,1734258644614,-500.0,0.00019893,3]
[345439716,1734258644624,-572.95335278,0.00019893,3]
[345439717,1734258644633,-500.0,0.00019893,3]
[345439718,1734258644642,-500.0,0.00019893,3]
[345439719,1734258644651,-500.0,0.00019893,3]
[345439720,1734258644660,-500.0,0.00019893,3]
[345439721,1734258644669,-600.86,0.00019893,3]
[345439722,1734258644679,-500.0,0.00019893,3]
[345439723,1734258644688,-500.0,0.00019893,3]
[345439724,1734258644698,-500.0,0.00019893,3]
[345439725,1734258644708,-500.0,0.00019893,3]
[345439726,1734258644717,-500.0,0.00019893,3]
[345439727,1734258644727,-500.0,0.00019893,3]
[345439728,1734258644736,-500.0,0.00019893,3]
[345439729,1734258644745,-500.0,0.00019893,3]
[345439730,1734258644755,-500.0,0.00019893,3]
[345439731,1734258644765,-500.0,0.00019893,3]
[345439732,1734258644774,-500.0,0.00019893,3]
[345439733,1734258644784,-500.0,0.00019893,3]
[345439734,1734258644793,-504.52064311,0.00019893,3]
[345439735,1734258644802,-500.0,0.00019893,3]
[345439736,1734258644813,-500.0,0.00019893,3]
[345439737,1734258644822,-500.0,0.00019893,3]
[345439738,1734258644832,-500.0,0.00019893,3]
[345439739,1734258644841,-500.0,0.00019893,3]
[345439740,1734258644851,-500.0,0.00019893,3]
[345439741,1734258644859,-500.0,0.00019893,3]
[345439742,1734258644869,-570.09,0.00019893,3]
[345439743,1734258644878,-500.0,0.00019893,3]
[345439744,1734258644888,-500.85,0.00019893,3]
[345439745,1734258644898,-500.0,0.00019893,3]
[345439746,1734258644907,-502.51611666,0.00019893,3]
[345439747,1734258644917,-500.0,0.00019893,3]
[345439748,1734258644927,-500.0,0.00019893,3]
[345439749,1734258644937,-505.34929985,0.00019893,3]
[345439750,1734258644946,-500.0,0.00019893,3]
[345439751,1734258644955,-500.0,0.00019893,3]
[345439752,1734258644964,-500.0,0.00019893,3]
[345439753,1734258644972,-500.0,0.00019893,3]
[345439754,1734258644982,-500.0,0.00019893,3]
[345439755,1734258644991,-500.0,0.00019893,3]
[345439756,1734258645002,-500.0,0.00019893,3]
[345439757,1734258645011,-500.0,0.00019893,3]
[345439758,1734258645021,-500.0,0.00019893,3]
[345439759,1734258645035,-500.0,0.00019893,3]
[345439760,1734258645044,-500.0,0.00019893,3]
[345439761,1734258645054,-500.0,0.00019893,3]
[345439762,1734258645067,-500.0,0.00019893,3]
[345439763,1734258645080,-500.0,0.00019893,3]
[345439764,1734258645090,-500.0,0.00019893,3]
[345439765,1734258645099,-500.0,0.00019893,3]
[345439766,1734258645110,-500.0,0.00019894,3]
[345439767,1734258645120,-500.0,0.00019894,3]
[345439768,1734258645129,-500.0,0.00019894,3]
[345439769,1734258645139,-500.0,0.00019894,3]
[345439770,1734258645148,-500.0,0.00019894,3]
[345439771,1734258645157,-500.0,0.00019894,3]
[345439772,1734258645167,-500.0,0.00019894,3]
[345439773,1734258645177,-500.0,0.00019894,3]
[345439774,1734258645187,-500.0,0.00019894,3]
[345439775,1734258645196,-500.0,0.00019894,3]
[345439776,1734258645205,-500.0,0.00019894,3]
[345439777,1734258645214,-500.0,0.00019894,3]
[345439778,1734258645224,-500.0,0.00019894,3]
[345439779,1734258645233,-500.0,0.00019894,3]
[345439780,1734258645242,-500.0,0.00019894,3]
[345439781,1734258645251,-606.22882393,0.00019894,3]
[345439782,1734258645261,-500.0,0.00019894,3]
[345439783,1734258645271,-500.0,0.00019894,3]
[345439784,1734258645280,-500.0,0.00019894,3]
[345439785,1734258645289,-500.0,0.00019894,3]
[345439786,1734258645299,-500.0,0.00019894,3]
[345439787,1734258645309,-720.1,0.00019894,3]
[345439788,1734258645318,-500.0,0.00019894,3]
[345439789,1734258645328,-500.0,0.00019894,3]
[345439790,1734258645336,-500.0,0.00019894,2]
[345439791,1734258645346,-500.0,0.00019894,3]
[345439792,1734258645355,-625.2814215,0.00019894,3]
[345439793,1734258645365,-500.0,0.00019894,3]
[345439794,1734258645374,-500.0,0.00019894,3]
[345439795,1734258645384,-500.0,0.00019894,3]
[345439796,1734258645394,-500.0,0.00019894,3]
[345439797,1734258645403,-500.0,0.00019894,3]
[345439798,1734258645412,-500.0,0.00019894,3]
[345439799,1734258645421,-500.0,0.00019894,3]
[345439800,1734258645430,-500.0,0.00019894,3]
[345439802,1734258645440,-500.0,0.00019894,3]
[345439804,1734258645450,-500.0,0.00019894,3]
[345439806,1734258645459,-500.0,0.00019894,3]
[345439807,1734258645468,-500.0,0.00019895,3]
[345439808,1734258645478,-1577.289,0.00019895,2]
[345439809,1734258645487,-167.492,0.00019895,2]
[345439810,1734258645496,-150.0,0.00019895,2]
[345439811,1734258645507,-150.0,0.00019895,2]
[345439812,1734258645518,-500.0,0.00019895,3]
[345439813,1734258645530,-500.0,0.00019895,3]
[345439814,1734258645541,-500.0,0.00019895,3]
[345439815,1734258645551,-500.0,0.00019895,3]
[345439816,1734258645564,-2391.66,0.00019895,3]
[345439817,1734258645580,-555.15,0.00019895,3]
[345439818,1734258645590,-6498.3,0.00019895,3]
[345439819,1734258645601,-500.0,0.00019895,3]
[345439820,1734258645611,-862.37,0.00019895,3]
[345439821,1734258645622,-500.0,0.00019895,3]
[345439822,1734258645632,-500.0,0.00019895,3]
[345439823,1734258645641,-500.0,0.00019895,3]
[345439824,1734258645651,-500.0,0.00019895,3]
[345439825,1734258645661,-548.25,0.00019895,3]
[345439826,1734258645671,-577.12,0.00019895,3]
[345439827,1734258645681,-1159.39,0.00019895,3]
[345439828,1734258645691,-500.0,0.00019895,3]
[345439829,1734258645701,-500.0,0.00019895,3]
[345439830,1734258645711,-500.0,0.00019895,3]
[345439831,1734258645720,-1365.67,0.00019895,3]
[345439832,1734258645730,-500.0,0.00019895,3]
[345439833,1734258645739,-500.0,0.00019895,3]
[345439834,1734258645749,-1100.32,0.00019895,3]
[345439835,1734258645758,-500.0,0.00019895,3]
[345439836,1734258645768,-940.37,0.00019895,3]
[345439837,1734258645777,-500.0,0.00019895,3]
[345439838,1734258645786,-865.18,0.00019895,3]
[345439839,1734258645795,-500.0,0.00019895,3]
[345439840,1734258645805,-635.74,0.00019895,3]
[345439841,1734258645818,-619.02,0.00019895,3]
[345439842,1734258645828,-500.0,0.00019895,3]
[345439843,1734258645838,-608.73,0.00019895,3]
[345439844,1734258645847,-500.0,0.00019895,3]
[345439845,1734258645861,-652.13,0.00019895,3]
[345439846,1734258645871,-2534.35,0.00019895,3]
[345439847,1734258645881,-2068.82,0.00019895,3]
[345439848,1734258645890,-500.0,0.00019895,3]
[345439849,1734258645899,-500.0,0.00019895,3]
[345439850,1734258645909,-986.66,0.00019895,3]
[345439851,1734258645918,-500.0,0.00019895,3]
[345439852,1734258645928,-2663.18,0.00019895,3]
[345439853,1734258645938,-500.0,0.00019895,3]
[345439854,1734258645948,-160.784195,0.00019895,3]
[345439855,1734258645958,-433.722498,0.00019895,3]
[345439856,1734258645968,-594.71,0.00019895,3]
[345439857,1734258645977,-326.0548683,0.00019895,3]
[345439858,1734258645987,-500.0,0.00019895,3]
[345439859,1734258645997,-500.0,0.00019895,3]
[345439860,1734258646006,-1101.71,0.00019895,3]
[345439861,1734258646016,-1239.91,0.00019895,3]
[345439862,1734258646026,-248.1,0.00019895,3]
[345439863,1734258646037,-618.78,0.00019895,3]
[345439864,1734258646047,-1000.0,0.00019896,4]
[345439865,1734258646056,-500.0,0.00019896,3]
[345439866,1734258646070,-500.0,0.00019896,3]
[345439867,1734258646079,-500.0,0.00019896,3]
[345439868,1734258646089,-500.0,0.00019896,3]
[345439869,1734258646100,-500.0,0.00019896,3]
[345439870,1734258646110,-500.0,0.00019896,3]
[345439871,1734258646120,-500.0,0.00019896,3]
[345439872,1734258646129,-194.15,0.00019896,3]
[345439873,1734258646139,-500.0,0.00019896,3]
[345439874,1734258646148,-500.0,0.00019896,3]
[345439875,1734258646158,-500.0,0.00019896,3]
[345439876,1734258646167,-500.0,0.00019896,3]
[345439877,1734258646176,-500.0,0.00019896,3]
[345439878,1734258646186,-815.15,0.00019896,3]
[345439879,1734258646195,-500.0,0.00019896,3]
[345439880,1734258646206,-500.0,0.00019896,3]
[345439881,1734258646215,-500.0,0.00019896,3]
[345439882,1734258646225,-500.0,0.00019896,3]
[345439883,1734258646234,-500.0,0.00019896,3]
[345439884,1734258646243,-500.0,0.00019896,3]
[345439885,1734258646252,-500.0,0.00019896,3]
[345439886,1734258646261,-500.0,0.00019896,3]
[345439887,1734258646271,-500.0,0.00019896,3]
[345439888,1734258646280,-500.0,0.00019896,3]
[345439889,1734258646290,-500.0,0.00019896,3]
[345439890,1734258646299,-500.0,0.00019896,3]
[345439891,1734258646310,-232.73104041,0.00019896,3]
[345439892,1734258646320,-500.0,0.00019896,2]
[345439893,1734258646330,-327.95,0.00019896,3]
[345439894,1734258646341,-500.0,0.00019896,3]
[345439895,1734258646350,-500.0,0.00019896,3]
[345439896,1734258646359,-500.0,0.00019896,3]
[345439897,1734258646368,-500.0,0.00019896,3]
[345439898,1734258646378,-727.98,0.00019896,3]
[345439899,1734258646388,-500.0,0.00019896,3]
[345439900,1734258646398,-500.0,0.00019896,3]
[345439901,1734258646407,-500.0,0.00019896,3]
[345439902,1734258646417,-749.02,0.00019896,3]
[345439903,1734258646427,-500.0,0.00019896,3]
[345439904,1734258646436,-339.56,0.00019896,3]
[345439905,1734258646445,-500.0,0.00019896,3]
[345439906,1734258646455,-500.0,0.00019896,3]
[345439907,1734258646464,-500.0,0.00019896,3]
[345439908,1734258646474,-500.0,0.00019896,3]
[345439909,1734258646483,-545.37,0.00019896,3]
[345439910,1734258646493,-500.0,0.00019896,3]
[345439911,1734258646502,-584.89,0.00019896,3]
[345439912,1734258646512,-500.0,0.00019896,3]
[345439913,1734258646521,-500.0,0.00019896,3]
[345439914,1734258646531,-500.0,0.00019896,3]
[345439915,1734258646540,-500.0,0.00019896,3]
[345439916,1734258646550,-4500.85,0.00019896,30]
[345439917,1734258646560,-500.0,0.00019896,3]
[345439918,1734258646569,-500.0,0.00019896,3]
[345439919,1734258646579,-686.52,0.00019896,3]
[345439920,1734258646588,-622.34,0.00019896,3]
[345439921,1734258646598,-618.43,0.00019896,3]
[345439922,1734258646608,-500.0,0.00019896,3]
[345439923,1734258646617,-691.24,0.00019896,3]
[345439924,1734258646627,-500.0,0.00019896,3]
[345439925,1734258646636,-500.0,0.00019896,3]
[345439926,1734258646646,-634.14,0.00019896,3]
[345439927,1734258646655,-500.0,0.00019896,3]
[345439928,1734258646664,-500.0,0.00019896,3]
[345439929,1734258646673,-1223.71,0.00019896,3]
[345439930,1734258646683,-500.0,0.00019896,3]
[345439931,1734258646692,-1300.09,0.00019896,3]
[345439932,1734258646702,-500.0,0.00019896,3]
[345439933,1734258646711,-500.0,0.00019896,3]
[345439934,1734258646721,-500.0,0.00019896,3]
[345439935,1734258646731,-167.3,0.00019896,3]
[345439936,1734258646740,-844.22,0.00019896,3]
[345439937,1734258646750,-500.0,0.00019896,3]
[345439938,1734258646759,-500.0,0.00019896,3]
[345439939,1734258646769,-500.0,0.00019896,3]
[345439940,1734258646779,-500.0,0.00019896,3]
[345439941,1734258646789,-500.0,0.00019896,3]
[345439942,1734258646799,-500.0,0.00019896,3]
[345439943,1734258646810,-1392.94,0.00019896,3]
[345439944,1734258646820,-500.0,0.00019896,3]
[345439945,1734258646830,-4170.62,0.00019896,3]
[345439946,1734258646839,-500.0,0.00019896,3]
[345439947,1734258646849,-618.52,0.00019896,3]
[345439948,1734258646858,-500.0,0.00019896,3]
[345439949,1734258646868,-500.0,0.00019896,3]
[345439950,1734258646878,-540.61,0.00019896,3]
[345439951,1734258646887,-500.0,0.00019896,3]
[345439952,1734258646897,-500.0,0.00019896,3]
[345439953,1734258646907,-500.0,0.00019896,3]
[345439954,1734258646916,-500.0,0.00019896,3]
[345439955,1734258646926,-500.0,0.00019896,3]
[345439956,1734258646935,-500.0,0.00019896,3]
[345439957,1734258646945,-1000.0,0.00019896,3]
[345439958,1734258646955,-500.0,0.00019896,3]
[345439959,1734258646965,-500.0,0.00019896,3]
[345439960,1734258646974,-500.0,0.00019896,3]
[345439961,1734258646984,-500.0,0.00019896,3]
[345439962,1734258646994,-500.0,0.00019896,3]
[345439963,1734258647004,-500.0,0.00019896,3]
[345439964,1734258647013,-500.0,0.00019896,3]
[345439965,1734258647024,-500.0,0.00019896,3]
[345439966,1734258647037,-500.0,0.00019896,3]
[345439967,1734258647047,-500.0,0.00019896,3]
[345439968,1734258647057,-500.0,0.00019896,3]
[345439969,1734258647069,-500.0,0.00019896,3]
[345439970,1734258647080,-500.0,0.00019896,3]
[345439971,1734258647090,-500.0,0.00019896,3]
[345439972,1734258647100,-500.0,0.00019896,3]
[345439973,1734258647111,-500.0,0.00019896,3]
[345439974,1734258647121,-500.0,0.00019896,3]
[345439975,1734258647131,-360.5215,0.00019897,2]
[345439976,1734258647141,-500.0,0.00019897,3]
[345439977,1734258647150,-500.0,0.00019897,3]
[345439978,1734258647160,-500.0,0.00019897,3]
[345439979,1734258647170,-500.0,0.00019897,3]
[345439980,1734258647179,-500.0,0.00019897,3]
[345439981,1734258647189,-500.0,0.00019897,3]
[345439982,1734258647199,-500.0,0.00019897,3]
[345439983,1734258647209,-500.0,0.00019897,3]
[345439984,1734258647218,-500.0,0.00019897,3]
[345439985,1734258647228,-500.0,0.00019897,3]
[345439986,1734258647238,-500.0,0.00019897,3]
[345439987,1734258647248,-288.57,0.00019897,3]
[345439988,1734258647259,-500.0,0.00019897,3]
[345439989,1734258647268,-500.0,0.00019897,3]
[345439990,1734258647278,-500.0,0.00019897,3]
[345439991,1734258647288,-500.0,0.00019897,3]
[345439992,1734258647297,-500.0,0.00019897,3]
[345439993,1734258647307,-500.0,0.00019897,3]
[345439994,1734258647317,-500.0,0.00019897,3]
[345439995,1734258647326,-720.1,0.00019897,3]
[345439996,1734258647336,-500.0,0.00019897,3]
[345439997,1734258647346,-500.0,0.00019897,3]
[345439998,1734258647357,-500.0,0.00019897,2]
[345439999,1734258647366,-500.0,0.00019897,3]
[345440000,1734258647376,-500.0,0.00019897,3]
[345440001,1734258647385,-300.92802278,0.00019897,3]
[345440002,1734258647402,-199.07197722,0.00019897,3]
[345440003,1734258647412,-500.0,0.00019897,3]
[345440004,1734258647421,-207.13107613,0.00019897,3]
[345440005,1734258647431,-500.0,0.00019897,3]
[345440006,1734258647440,-500.0,0.00019897,3]
[345440007,1734258647450,-500.0,0.00019897,3]
[345440008,1734258647460,-500.0,0.00019897,3]
[345440009,1734258647471,-500.0,0.00019897,3]
[345440010,1734258647480,-5.22680031,0.00019897,3]
[345440011,1734258647491,-494.77319969,0.00019897,3]
[345440012,1734258647501,-150.0,0.00019897,2]
[345440013,1734258647511,-150.0,0.00019898,2]
[345440014,1734258647521,-358.14349406,0.000199,2]
[345440015,1734258647531,-677.81581952,0.000199,3]
[345440016,1734258647541,-611.23199682,0.000199,2]
[345440017,1734258647551,-150.0,0.00019901,2]
[345440018,1734258647561,-150.0,0.00019902,2]
[345440019,1734258647570,-150.0,0.00019902,2]
[345440020,1734258647580,-150.0,0.00019903,2]
[345440021,1734258647590,-150.0,0.00019906,2]
[345440022,1734258647599,-150.0,0.00019907,2]
[345440023,1734258647609,-150.0,0.00019908,2]
[345440024,1734258647620,-150.0,0.00019909,2]
[345440025,1734258647630,-150.0,0.0001991,2]
[345440026,1734258647640,-150.0,0.0001991,2]
[345440027,1734258647650,-150.0,0.0001991,2]
[345440028,1734258647660,-150.0,0.00019914,2]
[345440029,1734258647670,-150.0,0.00019917,2]
[345440030,1734258647680,-150.0,0.0001992,2]
[345440031,1734258647690,-150.0,0.0001992,2]
[345440032,1734258647699,-150.0,0.00019923,2]
[345440033,1734258647709,-150.0,0.00019927,2]
[345440034,1734258647720,-150.0,0.00019928,2]
[345440035,1734258647730,-150.0,0.00019929,2]
[345440036,1734258647740,-150.0,0.00019931,2]
[345440037,1734258647750,-150.0,0.00019933,2]
[345440038,1734258647759,-150.0,0.00019936,2]
[345440039,1734258647769,-150.0,0.00019936,2]
[345440040,1734258647779,-150.0,0.00019939,2]
[345440041,1734258647789,-150.0,0.0001994,2]
[345440042,1734258647799,-150.0,0.0001994,2]
[345440043,1734258647809,-150.0,0.00019943,2]
[345440044,1734258647818,-127.7426079,0.00019943,2]
[345440045,1734258647883,-22.2573921,0.00019943,2]
[345440046,1734258647893,-150.0,0.00019944,2]
[345440047,1734258647902,-150.0,0.00019944,2]
[345440048,1734258647916,-150.0,0.00019945,2]
[345440049,1734258647925,-150.0,0.00019946,2]
[345440050,1734258647935,-150.0,0.00019948,2]
[345440051,1734258647946,-150.0,0.00019949,2]
[345440052,1734258647956,-150.0,0.00019951,2]
[345440053,1734258647966,-150.0,0.00019951,2]
[345440054,1734258647976,-150.0,0.00019956,2]
[345440055,1734258647986,-150.0,0.00019959,2]
[345440056,1734258647996,-150.0,0.0001996,2]
[345440057,1734258648006,-150.0,0.00019961,2]
[345440058,1734258648016,-150.0,0.00019964,2]
[345440059,1734258648028,-150.0,0.00019966,2]
[345440060,1734258648040,-150.0,0.00019966,2]
[345440061,1734258648050,-150.0,0.00019969,2]
[345440062,1734258648064,-150.0,0.00019972,2]
[345440063,1734258648075,-150.0,0.00019972,2]
[345440064,1734258648085,-150.0,0.00019974,2]
[345440065,1734258648095,-150.0,0.00019975,2]
[345440066,1734258648106,-150.0,0.00019975,2]
[345440067,1734258648116,-150.0,0.00019977,2]
[345440068,1734258648126,-200.0,0.00019978,2]
[345440069,1734258648137,-150.0,0.00019979,2]
[345440070,1734258648147,-150.0,0.00019982,2]
[345440071,1734258648157,-150.0,0.00019982,2]
[345440072,1734258648167,-150.0,0.00019984,2]
[345440073,1734258648178,-150.0,0.00019984,2]
[345440074,1734258648188,-150.0,0.00019985,2]
[345440075,1734258648202,-68.71172592,0.00019988,3]
[345440076,1734258648523,-150.0,0.00019735,2]
[345440077,1734258648533,-150.0,0.00019736,2]
[345440078,1734258648543,-150.0,0.00019743,2]
[345440079,1734258648552,-150.0,0.00019764,2]
[345440080,1734258648563,-150.0,0.00019768,2]
[345440081,1734258648573,-150.0,0.00019793,2]
[345440082,1734258648583,-150.0,0.00019794,2]
[345440083,1734258648593,-150.0,0.00019795,2]
[345440084,1734258648604,-150.0,0.00019805,2]
[345440085,1734258648615,-150.0,0.00019812,2]
[345440086,1734258648625,-150.0,0.00019823,2]
[345440087,1734258648635,-150.0,0.00019839,2]
[345440088,1734258648645,-150.0,0.00019842,2]
[345440089,1734258648655,-150.0,0.00019859,2]
[345440090,1734258648666,-150.0,0.00019867,2]
[345440091,1734258648687,-150.0,0.00019872,2]
[345440092,1734258648696,-150.0,0.0001988,2]
[345440093,1734258648706,-150.0,0.00019883,2]
[345440094,1734258648715,-150.0,0.00019883,2]
[345440095,1734258648725,-150.0,0.00019889,2]
[345440096,1734258648735,-150.0,0.00019893,2]
[345440097,1734258648745,-150.0,0.00019898,2]
[345440098,1734258648755,-150.0,0.00019912,2]
[345440099,1734258648765,-150.0,0.00019922,2]
[345440100,1734258648776,-150.0,0.00019943,2]
[345440101,1734258648964,-150.0,0.00019949,2]
[345440102,1734258648976,-150.0,0.00019953,2]
[345440103,1734258648986,-150.0,0.00019958,2]
[345440104,1734258648997,-150.0,0.00019966,2]
[345440105,1734258649007,-150.0,0.00019969,2]
[345440106,1734258649017,-150.0,0.00019977,2]
[345440107,1734258649028,-150.0,0.0001998,2]
[345440108,1734258649039,-431.28827408,0.00019988,3]
[345440109,1734258649049,-462.08,0.00019988,3]
[345440110,1734258649062,-728.67,0.00019988,3]
[345440111,1734258649072,-500.0,0.00019988,3]
[345440112,1734258649082,-500.0,0.00019988,3]
[345440113,1734258649091,-500.0,0.00019988,3]
[345440114,1734258649101,-500.0,0.00019988,3]
[345440115,1734258649111,-500.0,0.00019988,3]
[345440116,1734258649121,-916.66,0.00019988,3]
[345440117,1734258649131,-500.0,0.00019988,3]
[345440118,1734258649141,-488.3699831,0.00019988,3]
[345440119,1734258649151,-3659.5,0.00019988,3]
[345440120,1734258649163,-500.0,0.00019988,3]
[345440121,1734258649172,-809.53,0.00019988,3]
[345440122,1734258649184,-150.0,0.00019988,2]
[345440123,1734258649195,-500.0,0.00019989,3]
[345440124,1734258649205,-500.0,0.00019989,3]
[345440125,1734258649214,-500.0,0.00019989,3]
[345440126,1734258649225,-518.95,0.00019989,3]
[345440127,1734258649235,-500.0,0.00019989,3]
[345440128,1734258649245,-500.0,0.00019989,3]
[345440129,1734258649255,-500.0,0.00019989,3]
[345440130,1734258649265,-500.0,0.00019989,3]
[345440131,1734258649275,-500.0,0.00019989,3]
[345440132,1734258649284,-257.7725316,0.00019989,3]
[345440133,1734258649294,-500.0,0.00019989,3]
[345440134,1734258649303,-377.17921122,0.00019989,3]
[345440135,1734258649317,-122.82078878,0.00019989,3]
[345440136,1734258649327,-500.0,0.00019989,3]
[345440137,1734258649337,-720.1,0.00019989,3]
[345440138,1734258649347,-500.0,0.00019989,3]
[345440139,1734258649357,-500.0,0.00019989,3]
[345440140,1734258649367,-500.0,0.00019989,3]
[345440141,1734258649376,-500.0,0.00019989,3]
[345440142,1734258649385,-500.0,0.00019989,3]
[345440143,1734258649395,-500.0,0.00019989,3]
[345440144,1734258649404,-500.0,0.00019989,3]
[345440145,1734258649415,-150.0,0.0001999,2]
[345440146,1734258649424,-150.0,0.00019991,2]
[345440147,1734258649434,-150.0,0.00019991,2]
[345440148,1734258649444,-150.0,0.00019992,2]
[345440149,1734258649453,-150.0,0.00019992,2]
[345440150,1734258649463,-150.0,0.00019992,2]
[345440151,1734258649473,-150.0,0.00019992,2]
[345440152,1734258649483,-150.0,0.00019993,2]
[345440153,1734258649493,-500.0,0.00019993,3]
[345440154,1734258649503,-500.0,0.00019993,3]
[345440155,1734258649512,-500.0,0.00019993,3]
[345440156,1734258649522,-2391.66,0.00019993,3]
[345440157,1734258649532,-555.15,0.00019993,3]
[345440158,1734258649541,-224.73921122,0.00019993,3]
[345440159,1734258649567,-150.0,0.00019845,2]
[345440160,1734258649577,-150.0,0.00019862,2]
[345440161,1734258649588,-1085.53156668,0.00019993,3]
[345440162,1734258649601,-5188.0292221,0.00019993,3]
[345440163,1734258649611,-500.0,0.00019993,3]
[345440164,1734258649621,-862.37,0.00019993,3]
[345440165,1734258649631,-500.0,0.00019993,3]
[345440166,1734258649641,-179.77,0.00019993,3]
[345440167,1734258649650,-500.0,0.00019993,3]
[345440168,1734258649660,-500.0,0.00019993,3]
[345440169,1734258649669,-548.25,0.00019993,3]
[345440170,1734258649678,-577.12,0.00019993,3]
[345440171,1734258649688,-1159.39,0.00019993,3]
[345440172,1734258649698,-1365.67,0.00019993,3]
[345440173,1734258649710,-1100.32,0.00019993,3]
[345440174,1734258649719,-940.37,0.00019993,3]
[345440175,1734258649728,-865.18,0.00019993,3]
[345440176,1734258649737,-635.74,0.00019993,3]
[345440177,1734258649747,-608.73,0.00019993,3]
[345440178,1734258649757,-652.13,0.00019993,3]
[345440179,1734258649767,-2534.35,0.00019993,3]
[345440180,1734258649777,-2068.82,0.00019993,3]
[345440181,1734258649787,-986.66,0.00019993,3]
[345440182,1734258649796,-2000.14569995,0.00019993,3]
[345440183,1734258649808,-358.5775998,0.00019993,3]
[345440184,1734258649820,-304.45670025,0.00019993,3]
[345440185,1734258649831,-594.71,0.00019993,3]